Workbook

Sheet Accueil
C4: Achat et vente de titres
C5: Encaissement de coupons
C6: Calcul de rendement
C8: Bordereaux automatiques
C9: à compléter
C11: Accès par les onglets ci-dessous
C13: Compléter les zones claires
B34: © Yvan Péguiron - HEP-Lausanne - 2006

Sheet Bordereaux
B2: =IF(N6=1,"Bordereau d'achat d'actions","Bordereau de vente d'actions") -> Bordereau de vente d'actions
H4: Lausanne | J4: 2003-01-20 | P4: Titre | Q4: Choix
B6: 50 | C6: =IF(B6>1,"actions","action") -> actions | E6: porteur | L6: =IF(LEFT(E6,3)="nom","nom","por") -> por | M6: achat | N6: 2 | O6: =IF(N6=1,"Achat de ","Vente de ") -> Vente de | Q6: 1
C7: Nestlé | M7: vente | N7: 1 | O7: =IF(N7=1,"Achat de ","Vente de ") -> Achat de | P7: =IF(N7=1,J34+J43,J34-J43) -> 25857.65 | Q7: 0
C8: de | D8: CHF | E8: 10 | F8: de valeur nominale | I8: =B6*E8 -> 500
C10: au cours de | F10: 384.75 | J10: =F10*B6 -> 19237.5
C11: Non-libéré | F11: 0 | G11: % | J11: =(E8/100*F11)*B6 -> 0
P12: 0
C13: Valeur effective : | J13: =J10-J11 -> 19237.5
B15: =IF(N6=1,"+","-") -> - | C15: Frais:
C16: Courtage | F16: =O16 -> 1.1 | G16: o/o sur | H16: =P16 -> 19237.5 | I16: 211.6 | L16: =P16/100*O16 -> 211.6125 | M16: =IF(AND((J13<100),(L16<5)),5,IF(L16<10,10,L16)) -> 211.6125 | O16: =VLOOKUP(J10,Tarif,$M$18) -> 1.1 | P16: =J10 -> 19237.5 | Q16: =IF(R16>80,R16,80) -> 211.6 | R16: =ROUND(P16*O16/100*2,1)/2 -> 211.6
C17: Timbre fédéral | F17: =O17 -> 0.75 | G17: o/oo sur | H17: 19237.5 | I17: 14.45 | L17: =P17/1000*O17 -> 14.428125 | O17: =IF(D8<>"CHF",1.5,0.75) -> 0.75 | P17: =J13 -> 19237.5 | Q17: =INT(((L17-0.0001)*20)+1)/20 -> 14.45
C18: Taxe de bourse | F18: =O18 -> 0.1 | G18: o/oo sur | H18: 20000 | I18: 2 | L18: Action | M18: 2 | O18: 0.1 | P18: =INT(((J13-0.0001)/1000)+1)*1000 -> 20000 | Q18: =ROUND(P18*O18/1000,1) -> 2
C19: =IF(L6="nom","Transfert","") ->  | F19: =O19 -> 0 | G19: =IF(L6="nom","fr x",0) -> 0 | H19: 0 | I19: 0 | J19: =SUM(I16:I19) -> 228.05 | L19: 0 | M19: 1.1 | N19: 0.8 | O19: =IF(L6="nom",LOOKUP(F10,L19:L23,M19:M23),0) -> 0 | P19: =IF(L6="nom",B6,0) -> 0 | Q19: =O19*P19 -> 0
L20: 50001 | M20: 1 | N20: 0.7
C21: Valeur | E21: =J4 -> 2003-01-20 | G21: =IF(N6=1,"A votre débit","A votre crédit") -> A votre crédit | J21: =IF(N6=1,SUM(J13:J19),J13-J19) -> 19009.45 | L21: 100001 | M21: 0.9 | N21: 0.6
L22: 150001 | M22: 0.8 | N22: 0.5 | O22: TRUE | P22: FALSE
B26: =IF(N7=1,"Bordereau d'achat d'obligations","Bordereau de vente d'obligations") -> Bordereau d'achat d'obligations | L26: 200001 | M26: 0.7 | N26: 0.4
L27: 250001 | M27: 0.5 | N27: 0.35
H28: Zurich | J28: 2006-03-13 | L28: 1000001 | M28: 0.2 | N28: 0.2
B30: 5 | C30: =IF(B30>1,"obligations","obligation") -> obligations | F30: 3.5 | G30: % | L30: Oblig. | M30: 3
C31: Ville de Lausanne | F31: Echéance : | G31: 2008-06-15
C32: de | D32: CHF | E32: 5000 | F32: de valeur nominale | I32: =B30*E32 -> 25000
C34: au cours de | F34: 102.5 | G34: % | J34: =I32*F34/100 -> 25625 | L34: =DAYS360(G31,J28) -> -812
C35: Intérêt couru | F35: pdt | G35: =MOD(L34,360) -> 268 | H35: jours | J35: =ROUND(I32*F30*G35/36000*2,1)/2 -> 651.4
C37: Valeur effective : | J37: =SUM(J34:J35) -> 26276.4
B39: =IF(N7=1,"+","-") -> + | C39: Frais:
C40: Courtage | F40: =O40 -> 0.8 | G40: o/o sur | H40: =P40 -> 26276.4 | I40: 210.2 | L40: =P40/100*O40 -> 210.2112 | M40: =IF(AND((J37<100),(L40<5)),5,IF(L40<10,10,L40)) -> 210.2112 | O40: =VLOOKUP(J37,Tarif,$M$30) -> 0.8 | P40: =J37 -> 26276.4 | Q40: =IF(R40>80,R40,80) -> 210.2 | R40: =ROUND(P40*O40/100*2,1)/2 -> 210.2
C41: Timbre fédéral | F41: =O41 -> 0.75 | G41: o/oo sur | H41: 26276.4 | I41: 19.75 | L41: =P41/1000*O41 -> 19.7073 | O41: =IF(D32<>"CHF",1.5,0.75) -> 0.75 | P41: =J37 -> 26276.4 | Q41: =INT(((L41-0.0001)*20)+1)/20 -> 19.75
C42: Taxe de bourse | F42: =O42 -> 0.1 | G42: o/oo sur | H42: 27000 | I42: 2.7 | O42: 0.1 | P42: =INT(((J37-0.0001)/1000)+1)*1000 -> 27000 | Q42: =P42*O42/1000 -> 2.7
C43: =IF(L30="nom","Transfert","") ->  | F43: =O43 -> 0 | H43: 0 | I43: 0 | J43: =SUM(I40:I43) -> 232.65 | L43: 0 | M43: 0.05
L44: 50 | M44: 0.1
C45: Valeur | E45: =J28 -> 2006-03-13 | G45: =IF(N7=1,"A votre débit","A votre crédit") -> A votre débit | J45: =IF(N7=1,SUM(J37:J43),J37-J43) -> 26509.05 | L45: 100 | M45: 0.5
L46: 500 | M46: 1 | O46: TRUE | P46: FALSE
L47: 1000000000 | M47: 1

Sheet Coupons
B3: Encaissement de coupons
B5: Nb. de coupons | C5: Echéance | D5: Désignation des valeurs | E5: Capital ou dividende | F5: Capital ou dividende total | G5: Taux en % pour oblig. | H5: Montant brut | I5: Impôt fédéral | J5: Frais et commission | K5: NET CHF
B7: 2 | C7: 2006-04-18 | D7: Obligation | E7: 2000 | F7: =B7*E7 -> 4000 | G7: 5.5 | H7: =IF(G7=0,F7,ROUND(F7*G7*2/100,1)/2) -> 220 | I7: =ROUND(H7*0.35*2,1)/2 -> 77 | K7: =H7-I7-J7 -> 143
B8: 10 | C8: 2006-04-20 | D8: Actions | E8: 46 | F8: =B8*E8 -> 460 | H8: =IF(G8=0,F8,ROUND(F8*G8*2/100,1)/2) -> 460 | I8: =ROUND(H8*0.35*2,1)/2 -> 161 | K8: =H8-I8-J8 -> 299
F9: =B9*E9 -> 0 | H9: =ROUND(F9*G9*2/100,1)/2 -> 0 | I9: =ROUND(H9*0.35*2,1)/2 -> 0 | K9: =H9-I9-J9 -> 0
F10: =B10*E10 -> 0 | H10: =ROUND(F10*G10*2/100,1)/2 -> 0 | I10: =ROUND(H10*0.35*2,1)/2 -> 0 | K10: =H10-I10-J10 -> 0
F11: =B11*E11 -> 0 | H11: =ROUND(F11*G11*2/100,1)/2 -> 0 | I11: =ROUND(H11*0.35*2,1)/2 -> 0 | K11: =H11-I11-J11 -> 0
F12: Totaux | H12: =SUM(H7:H11) -> 680 | I12: =SUM(I7:I11) -> 238 | J12: =SUM(J7:J11) -> 0 | K12: =SUM(K7:K11) -> 442

Sheet Journal
B1: Journal des bordereaux actifs de ce classeur
B2: (Ne rien entrer dans ce journal)
B3: Date | C3: Compte à | G3: Libellé | H3: Sommes à
C4: débiter | E4: créditer | H4: débiter | I4: créditer
B5: =Bordereaux!J4 -> 2003-01-20 | C5: =IF(Bordereaux!N6=1," 1060 Titres"," 1020 Banque") -> 1020 Banque | E5: =IF(Bordereaux!N6=1," 1020 Banque"," 1060 Titres") -> 1060 Titres | G5: =Bordereaux!O6&Bordereaux!B6&" "&Bordereaux!C6&" "&Bordereaux!C7&" à "&Bordereaux!F10 -> Vente de 50 actions Nestlé à 384.75 | H5: =Bordereaux!J21 -> 19009.45 | I5: =H5 -> 19009.45 | K5: =Bordereaux!Q6 -> 1
K6: =Bordereaux!Q7 -> 0
B7: =Bordereaux!J28 -> 2006-03-13 | C7: =IF(Bordereaux!N7=1,""," 1020 Banque") ->  | E7: =IF(Bordereaux!N7=1," 1020 Banque","") -> 1020 Banque | G7: =Bordereaux!O7&" "&Bordereaux!B30&" "&Bordereaux!C30&" "&Bordereaux!C31&" "&Bordereaux!F30&"% - nom. "&Bordereaux!E32&" à "&Bordereaux!F34 -> Achat de 5 obligations Ville de Lausanne 3.5% - nom. 5000 à 102.5 | H7: =IF(C8="",SUM(I8:I9),"") ->  | I7: =IF(C8="","",SUM(H8:H9)) -> 26509.05 | K7: =IF(Coupons!B7=0,0,1) -> 1
C8: =IF(Bordereaux!N7=1," 1060 Titres","") -> 1060 Titres | E8: =IF(Bordereaux!N7=1,""," 1060 Titres") ->  | G8: =" "&Bordereaux!B30&" x "&Bordereaux!C31&" à "&Bordereaux!F34 -> 5 x Ville de Lausanne à 102.5 | H8: =IF(C8="","",Bordereaux!P7) -> 25857.65 | I8: =IF(C8="",Bordereaux!P7,"") -> 
C9: =IF(Bordereaux!N7=1," 7400 Prod. des titres","") -> 7400 Prod. des titres | E9: =IF(Bordereaux!N7=1,""," 7400 Prod. des titres") ->  | G9: =" Intérêt couru pendant "&Bordereaux!G35&" jours" -> Intérêt couru pendant 268 jours | H9: =IF(C8="","",Bordereaux!J35) -> 651.4 | I9: =IF(C9="",Bordereaux!J35,"") -> 
B11: =Coupons!C7 -> 2006-04-18 | C11: 1020 Banque | G11: ="Coupons "&Coupons!D7&" - "&Coupons!D8&", net" -> Coupons Obligation - Actions, net | H11: =Coupons!K12 -> 442
C12: 1176 Créance AFC | G12: Impôt anticipé 35% | H12: =Coupons!I12 -> 238
E13: 7400 Prod. des titres | G13: ="Coupons "&Coupons!D7&" - "&Coupons!D8&", brut" -> Coupons Obligation - Actions, brut | I13: =Coupons!H12 -> 680

Sheet Rendement
B2: Bordereau d'achat
H4: Zurich | J4: 1999-02-01 | K4: =DAYS360($G$7,J4) -> -4456
B6: 25 | F6: 5 | G6: %
C7: Confédération | F7: Echéance : | G7: 2011-06-17
C8: de | D8: CHF | E8: 500 | F8: de valeur nominale | I8: =B6*E8 -> 12500 | K8: 1 | L8: action
K9: 2 | L9: actions
C10: au prix unitaire de | F10: 325 | G10: .- | J10: =F10*B6 -> 8125 | K10: 3 | L10: obligation
C11: Intérêt couru pour les obligations | F11: pdt | G11: =IF(F6=0,0,MOD(K4,360)) -> 224 | H11: jours | J11: =ROUND(I8*F6*G11/36000*2,1)/2 -> 388.9 | K11: 4 | L11: obligations
C13: Valeur effective : | J13: =SUM(J10:J11) -> 8513.9 | L13: 4
B15: + | C15: Frais: | I15: 164.45 | J15: =I15 -> 164.45
C16: Valeur | E16: =J4 -> 1999-02-01 | G16: A votre débit | J16: =J13+J15 -> 8678.35
B22: Bordereau de vente
H24: Zurich | J24: 2002-09-18 | K24: =DAYS360($G$7,J24) -> -3149
B26: =B6 -> 25 | C26: =VLOOKUP(L13,K8:L11,2) -> obligations | F26: =F6 -> 5 | G26: %
C27: =C7 -> Confédération
C28: de | D28: =D8 -> CHF | E28: =E8 -> 500 | F28: de valeur nominale | I28: =B26*E28 -> 12500
C30: au prix unitaire de | F30: 435 | G30: .- | J30: =F30*B26 -> 10875
C31: Intérêt couru pour les obligations | F31: pdt | G31: =IF(F26=0,0,MOD(K24,360)) -> 91 | H31: jours | J31: =ROUND(I28*F26*G31/36000*2,1)/2 -> 158
C33: Valeur effective : | J33: =SUM(J30:J31) -> 11033
B35: =IF(N7=1,"+","-") -> - | C35: Frais: | I35: 203.9 | J35: =I35 -> 203.9
C36: Valeur | E36: =J24 -> 2002-09-18 | G36: =IF(N7=1,"A votre débit","A votre crédit") -> A votre crédit | J36: =J33-J35 -> 10829.1
B40: Capital engagé sans IC | G40: =J10+J15 -> 8289.45
B41: Capital récupéré | G41: =J30-J35 -> 10671.1
B42: =IF(G42=0,"",IF(G42>0,"Gain","Perte")) -> Gain | G42: =G41-G40 -> 2381.65
B43: Dividendes encaissés ou
B44: Intérêts | G44: =I8*F6*E46/36000 -> 2269.097222
B45: Revenu total | G45: =G42+G43+G44 -> 4650.747222
B46: Durée | E46: =DAYS360(J4,J24) -> 1307 | F46: jours
B48: Revenu annuel | G48: =G45/E46*360 -> 1281.00153
F50: =G48 -> 1281.00153 | H50: x | I50: 100
B51: Taux de rendement annuel : | J51: = | K51: =F50*I50/F52 -> 15.45339595 | L51: %
F52: =G40 -> 8289.45
B60: Calcul sans bordereau
B62: Capital engagé sans IC | G62: 100
B63: Capital récupéré | G63: 90
B64: =IF(G64=0,"",IF(G64>0,"Gain","Perte")) -> Perte | G64: =G63-G62 -> -10
B65: Dividendes encaissés ou
B66: Intérêts | G66: 20
B67: Revenu total | G67: =G64+G65+G66 -> 10
B68: Durée | E68: 360 | F68: jours
B70: Revenu annuel | G70: =G67/E68*360 -> 10
F72: =G70 -> 10 | H72: x | I72: 100
B73: Taux de rendement annuel : | J73: = | K73: =F72*I72/F74 -> 10 | L73: %
F74: =G62 -> 100
B79: Taux de rendement direct
B81: Capital engagé sans IC | G81: 120
B82: Intérêt annuel ou dividende | G82: 5
F85: =G82 -> 5 | H85: x | I85: 100
B86: Taux de rendement direct : | J86: = | K86: =F85*I85/F87 -> 4.166666667 | L86: %
F87: =G81 -> 120
